[Event "*** Titled Tuesday Blitz"]
[Site "Chess.com"]
[Date "2020.11.24"]
[Round "3"]
[White "FMalexhdez"]
[Black "Anna_ChessMate"]
[Result "1-0"]
[WhiteElo "2287"]
[BlackElo "2573"]
[TimeControl "180+1"]
[EndTime "10:44:47 PST"]
[Termination "FMalexhdez won by resignation"]

1. e4 {[%clk 0:02:56.9]} 1... c6 {[%clk 0:03:00.1]} 2. d4 {[%clk 0:02:56.1]}
2... d5 {[%clk 0:03:01]} 3. exd5 {[%clk 0:02:56.6]} 3... cxd5 {[%clk 0:03:01.5]}
4. Bd3 {[%clk 0:02:57.3]} 4... Nc6 {[%clk 0:03:01]} 5. c3 {[%clk 0:02:57.5]}
5... Nf6 {[%clk 0:02:59.6]} 6. Bg5 {[%clk 0:02:56.4]} 6... Bg4 {[%clk
0:02:49.8]} 7. Qb3 {[%clk 0:02:56.1]} 7... Qd7 {[%clk 0:02:36.1]} 8. Nd2 {[%clk
0:02:57]} 8... e6 {[%clk 0:02:34.8]} 9. Ngf3 {[%clk 0:02:56.7]} 9... Bd6 {[%clk
0:02:34.7]} 10. Bh4 {[%clk 0:02:53.6]} 10... O-O {[%clk 0:02:30.1]} 11. Bg3
{[%clk 0:02:53.3]} 11... Rfe8 {[%clk 0:02:09.6]} 12. O-O {[%clk 0:02:49.9]}
12... Bxg3 {[%clk 0:01:56.3]} 13. hxg3 {[%clk 0:02:48.3]} 13... Rac8 {[%clk
0:01:56.9]} 14. Rfe1 {[%clk 0:02:46.4]} 14... Na5 {[%clk 0:01:49.4]} 15. Qa3
{[%clk 0:02:31.9]} 15... Qc7 {[%clk 0:01:46.2]} 16. Ne5 {[%clk 0:02:30.4]} 16...
Bh5 {[%clk 0:01:45.9]} 17. b4 {[%clk 0:02:21.3]} 17... Nc6 {[%clk 0:01:27.6]}
18. Rac1 {[%clk 0:02:03.7]} 18... Nxe5 {[%clk 0:01:24.1]} 19. dxe5 {[%clk
0:02:01.5]} 19... Nd7 {[%clk 0:01:23.8]} 20. f4 {[%clk 0:01:55]} 20... Red8
{[%clk 0:01:22.7]} 21. Nb3 {[%clk 0:01:12.6]} 21... Bg6 {[%clk 0:01:10.9]} 22.
Bf1 {[%clk 0:01:10.3]} 22... Nb6 {[%clk 0:01:03.1]} 23. Nc5 {[%clk 0:00:36.7]}
23... a6 {[%clk 0:00:59]} 24. Qa5 {[%clk 0:00:35.3]} 24... Nd7 {[%clk
0:00:55.1]} 25. Qxc7 {[%clk 0:00:33.9]} 25... Rxc7 {[%clk 0:00:56]} 26. Nxd7
{[%clk 0:00:26.5]} 26... Rdxd7 {[%clk 0:00:56.9]} 27. Kf2 {[%clk 0:00:24.1]}
27... Rd8 {[%clk 0:00:53.1]} 28. c4 {[%clk 0:00:22.5]} 28... Rdc8 {[%clk
0:00:49.8]} 29. c5 {[%clk 0:00:14.9]} 29... Kf8 {[%clk 0:00:43.9]} 30. Ke3
{[%clk 0:00:14.9]} 30... Ke7 {[%clk 0:00:40.2]} 31. Kd4 {[%clk 0:00:15.1]} 31...
f6 {[%clk 0:00:40]} 32. a4 {[%clk 0:00:14.4]} 32... Be8 {[%clk 0:00:36.6]} 33.
b5 {[%clk 0:00:13.5]} 33... axb5 {[%clk 0:00:37.4]} 34. axb5 {[%clk 0:00:13.1]}
34... Ra8 {[%clk 0:00:38.3]} 35. Ra1 {[%clk 0:00:12.2]} 35... Rac8 {[%clk
0:00:38.7]} 36. Rec1 {[%clk 0:00:11.8]} 36... fxe5+ {[%clk 0:00:38.4]} 37. fxe5
{[%clk 0:00:11.7]} 37... g5 {[%clk 0:00:28.2]} 38. Ra7 {[%clk 0:00:11]} 38... h6
{[%clk 0:00:27.3]} 39. b6 {[%clk 0:00:10.4]} 39... Rd7 {[%clk 0:00:25.6]} 40.
Bb5 {[%clk 0:00:10.6]} 40... Rdd8 {[%clk 0:00:25.1]} 41. Rxb7+ {[%clk
0:00:11.2]} 41... Kf8 {[%clk 0:00:25.8]} 42. c6 {[%clk 0:00:11.5]} 42... Bg6
{[%clk 0:00:25.2]} 43. c7 {[%clk 0:00:10.8]} 1-0

[Event "*** Titled Tuesday Blitz"]
[Site "Chess.com"]
[Date "2020.11.24"]
[Round "3"]
[White "Satscho"]
[Black "mikheeva86"]
[Result "1-0"]
[WhiteElo "2302"]
[BlackElo "1968"]
[TimeControl "180+1"]
[EndTime "10:44:47 PST"]
[Termination "Satscho won on time"]

1. e4 {[%clk 0:03:00.9]} 1... e5 {[%clk 0:02:58.7]} 2. Nf3 {[%clk 0:03:00.8]}
2... Nc6 {[%clk 0:02:58.7]} 3. Bb5 {[%clk 0:03:01.4]} 3... Nd4 {[%clk
0:02:57.3]} 4. Nxd4 {[%clk 0:02:59]} 4... exd4 {[%clk 0:02:57.9]} 5. O-O {[%clk
0:02:59.7]} 5... Bc5 {[%clk 0:02:57.7]} 6. d3 {[%clk 0:02:55.7]} 6... c6 {[%clk
0:02:54.3]} 7. Ba4 {[%clk 0:02:54.6]} 7... Ne7 {[%clk 0:02:45.4]} 8. Bg5 {[%clk
0:02:42.7]} 8... f6 {[%clk 0:02:43.9]} 9. Bh4 {[%clk 0:02:42.8]} 9... O-O {[%clk
0:02:41.8]} 10. Qh5 {[%clk 0:02:31.2]} 10... Bb6 {[%clk 0:02:17.6]} 11. Nd2
{[%clk 0:02:29.2]} 11... Kh8 {[%clk 0:02:12.1]} 12. f4 {[%clk 0:02:23.5]} 12...
d5 {[%clk 0:02:01.8]} 13. Rae1 {[%clk 0:02:15.9]} 13... dxe4 {[%clk 0:01:59.8]}
14. Nxe4 {[%clk 0:02:08.3]} 14... Bf5 {[%clk 0:01:55.9]} 15. Ng3 {[%clk
0:02:02.5]} 15... Bg6 {[%clk 0:01:53.8]} 16. Qg4 {[%clk 0:02:01.6]} 16... Nd5
{[%clk 0:01:49.5]} 17. f5 {[%clk 0:01:50.6]} 17... Ne3 {[%clk 0:01:40.8]} 18.
Qh3 {[%clk 0:01:25.3]} 18... Bxf5 {[%clk 0:01:13.9]} 19. Nxf5 {[%clk 0:01:10.4]}
19... Nxf1 {[%clk 0:01:13.2]} 20. Rxf1 {[%clk 0:01:08.8]} 20... Qe8 {[%clk
0:01:07.9]} 21. Bb3 {[%clk 0:01:02.6]} 21... Qg6 {[%clk 0:01:00.3]} 22. Rf4
{[%clk 0:00:45.2]} 22... Rae8 {[%clk 0:00:51.3]} 23. Qf3 {[%clk 0:00:37.1]}
23... Re5 {[%clk 0:00:42.5]} 24. Nxg7 {[%clk 0:00:17.8]} 24... Kxg7 {[%clk
0:00:20.4]} 25. Rg4 {[%clk 0:00:17.5]} 25... Rg5 {[%clk 0:00:17.3]} 26. Bxg5
{[%clk 0:00:17.7]} 26... fxg5 {[%clk 0:00:16.5]} 27. Qg3 {[%clk 0:00:18.3]}
27... h6 {[%clk 0:00:15]} 28. h4 {[%clk 0:00:18.3]} 28... Qf5 {[%clk 0:00:06.1]}
29. hxg5 {[%clk 0:00:17.2]} 29... Qf1+ {[%clk 0:00:05.7]} 30. Kh2 {[%clk
0:00:17.3]} 30... h5 {[%clk 0:00:04.4]} 31. Qe5+ {[%clk 0:00:14.2]} 31... Kg6
{[%clk 0:00:02.5]} 32. Qe6+ {[%clk 0:00:11.7]} 1-0

[Event "*** Titled Tuesday Blitz"]
[Site "Chess.com"]
[Date "2020.11.24"]
[Round "3"]
[White "DishonorOnYourCow"]
[Black "Chernobay_Artem"]
[Result "0-1"]
[WhiteElo "2437"]
[BlackElo "2695"]
[TimeControl "180+1"]
[EndTime "10:44:49 PST"]
[Termination "Chernobay_Artem won by checkmate"]

1. d4 {[%clk 0:03:00.9]} 1... Nf6 {[%clk 0:02:57.3]} 2. c4 {[%clk 0:03:00.8]}
2... g6 {[%clk 0:02:57.8]} 3. Nc3 {[%clk 0:03:00.6]} 3... Bg7 {[%clk 0:02:58.5]}
4. e4 {[%clk 0:03:00.4]} 4... d6 {[%clk 0:02:59.1]} 5. f3 {[%clk 0:03:00.7]}
5... O-O {[%clk 0:02:58.3]} 6. Nge2 {[%clk 0:03:00.5]} 6... c5 {[%clk
0:02:58.4]} 7. Be3 {[%clk 0:02:59.9]} 7... Nc6 {[%clk 0:02:58.3]} 8. d5 {[%clk
0:02:59.2]} 8... Ne5 {[%clk 0:02:58.1]} 9. Ng3 {[%clk 0:02:59.2]} 9... e6 {[%clk
0:02:57.3]} 10. Be2 {[%clk 0:02:55.6]} 10... h5 {[%clk 0:02:53.4]} 11. O-O
{[%clk 0:02:52.4]} 11... h4 {[%clk 0:02:50.2]} 12. Nh1 {[%clk 0:02:51.3]} 12...
exd5 {[%clk 0:02:49.4]} 13. cxd5 {[%clk 0:02:49.4]} 13... h3 {[%clk 0:02:44.5]}
14. g4 {[%clk 0:02:31.4]} 14... a6 {[%clk 0:02:26.3]} 15. a4 {[%clk 0:02:30]}
15... Qb6 {[%clk 0:02:07.2]} 16. Qd2 {[%clk 0:02:05.8]} 16... Bxg4 {[%clk
0:01:43.2]} 17. fxg4 {[%clk 0:01:47.2]} 17... Nfxg4 {[%clk 0:01:42]} 18. Nf2
{[%clk 0:01:33.3]} 18... Nxe3 {[%clk 0:01:39]} 19. Qxe3 {[%clk 0:01:32.9]} 19...
Qb4 {[%clk 0:00:59.6]} 20. Qxh3 {[%clk 0:00:58.9]} 20... f5 {[%clk 0:00:44]} 21.
Kh1 {[%clk 0:00:48]} 21... f4 {[%clk 0:00:40.3]} 22. Qe6+ {[%clk 0:00:23.1]}
22... Rf7 {[%clk 0:00:38.8]} 23. Nh3 {[%clk 0:00:15.8]} 23... Qxb2 {[%clk
0:00:33.8]} 24. Rac1 {[%clk 0:00:12.6]} 24... f3 {[%clk 0:00:29.2]} 25. Bxf3
{[%clk 0:00:07.9]} 25... Nxf3 {[%clk 0:00:28]} 26. Rxf3 {[%clk 0:00:06.3]} 26...
Qxc1+ {[%clk 0:00:28.2]} 27. Kg2 {[%clk 0:00:06.5]} 27... Rf8 {[%clk 0:00:25]}
28. Ng5 {[%clk 0:00:05.8]} 28... Qxg5+ {[%clk 0:00:22.7]} 29. Rg3 {[%clk
0:00:04.7]} 29... Qd2+ {[%clk 0:00:21.3]} 30. Kh3 {[%clk 0:00:04.8]} 30... Bxc3
{[%clk 0:00:19.1]} 31. Qxg6+ {[%clk 0:00:04.7]} 31... Bg7 {[%clk 0:00:19.1]} 32.
Qh5 {[%clk 0:00:04.1]} 32... Rf2 {[%clk 0:00:15.7]} 33. Kg4 {[%clk 0:00:02.8]}
33... R8f4+ {[%clk 0:00:13.6]} 34. Kg5 {[%clk 0:00:02]} 34... Rxe4+ {[%clk
0:00:13.9]} 35. Kg6 {[%clk 0:00:02.2]} 35... Rf6# {[%clk 0:00:13.5]} 0-1

[Event "*** Titled Tuesday Blitz"]
[Site "Chess.com"]
[Date "2020.11.24"]
[Round "3"]
[White "CakeinSpace2002"]
[Black "chessdjw"]
[Result "0-1"]
[WhiteElo "2398"]
[BlackElo "2666"]
[TimeControl "180+1"]
[EndTime "10:44:50 PST"]
[Termination "chessdjw won by resignation"]

1. d4 {[%clk 0:02:59.4]} 1... Nf6 {[%clk 0:02:59.6]} 2. c4 {[%clk 0:02:59.4]}
2... g6 {[%clk 0:02:59.2]} 3. Nc3 {[%clk 0:02:59.1]} 3... d5 {[%clk 0:02:58.3]}
4. e3 {[%clk 0:02:58]} 4... Bg7 {[%clk 0:02:58]} 5. Nf3 {[%clk 0:02:58]} 5...
O-O {[%clk 0:02:57.6]} 6. Bd3 {[%clk 0:02:58.1]} 6... c5 {[%clk 0:02:53.7]} 7.
O-O {[%clk 0:02:57.3]} 7... cxd4 {[%clk 0:02:52.1]} 8. exd4 {[%clk 0:02:57.4]}
8... Bg4 {[%clk 0:02:46.4]} 9. cxd5 {[%clk 0:02:53.3]} 9... Nxd5 {[%clk
0:02:43.9]} 10. h3 {[%clk 0:02:52.1]} 10... Be6 {[%clk 0:02:32]} 11. Re1 {[%clk
0:02:41.7]} 11... Nxc3 {[%clk 0:02:18.9]} 12. bxc3 {[%clk 0:02:40.2]} 12... Bd5
{[%clk 0:02:16.8]} 13. Bg5 {[%clk 0:02:31.7]} 13... Nc6 {[%clk 0:02:15.3]} 14.
Qe2 {[%clk 0:02:24]} 14... Re8 {[%clk 0:02:11]} 15. Rad1 {[%clk 0:02:21.6]}
15... Rc8 {[%clk 0:02:09]} 16. Bb1 {[%clk 0:02:17.7]} 16... Qa5 {[%clk
0:02:02.9]} 17. Bd2 {[%clk 0:02:08.7]} 17... Qa4 {[%clk 0:01:57.6]} 18. Ne5
{[%clk 0:01:48.4]} 18... Nxe5 {[%clk 0:01:43.6]} 19. dxe5 {[%clk 0:01:47.4]}
19... a6 {[%clk 0:01:29.6]} 20. Be3 {[%clk 0:01:33.6]} 20... e6 {[%clk
0:01:20.7]} 21. Bd4 {[%clk 0:01:32.9]} 21... Qc6 {[%clk 0:01:14.2]} 22. f3
{[%clk 0:01:23.7]} 22... b5 {[%clk 0:01:13.5]} 23. h4 {[%clk 0:01:03.2]} 23...
h5 {[%clk 0:01:12.8]} 24. Qd2 {[%clk 0:00:59.3]} 24... Red8 {[%clk 0:01:12]} 25.
Qg5 {[%clk 0:00:58.2]} 25... Rd7 {[%clk 0:01:07.5]} 26. Rf1 {[%clk 0:00:57.2]}
26... Qa8 {[%clk 0:00:59.6]} 27. Qf4 {[%clk 0:00:54.7]} 27... Rc4 {[%clk
0:00:57.7]} 28. Bd3 {[%clk 0:00:51.3]} 28... Ra4 {[%clk 0:00:56.6]} 29. Bb1
{[%clk 0:00:44.7]} 29... Bxa2 {[%clk 0:00:55.8]} 30. Bxa2 {[%clk 0:00:38.1]}
30... Rxa2 {[%clk 0:00:56.7]} 31. g4 {[%clk 0:00:37.9]} 31... hxg4 {[%clk
0:00:54.8]} 32. Qxg4 {[%clk 0:00:38.8]} 32... Qd8 {[%clk 0:00:44.7]} 33. h5
{[%clk 0:00:35.2]} 33... gxh5 {[%clk 0:00:28.3]} 34. Qxh5 {[%clk 0:00:36]} 34...
b4 {[%clk 0:00:24.4]} 35. f4 {[%clk 0:00:12.4]} 35... bxc3 {[%clk 0:00:22.9]}
36. Bxc3 {[%clk 0:00:12.5]} 36... Qb6+ {[%clk 0:00:22.9]} 37. Kh1 {[%clk
0:00:11.7]} 37... Qc6+ {[%clk 0:00:22.9]} 0-1

[Event "*** Titled Tuesday Blitz"]
[Site "Chess.com"]
[Date "2020.11.24"]
[Round "3"]
[White "Meri-Arabidze"]
[Black "GigaQuparadze"]
[Result "0-1"]
[WhiteElo "2616"]
[BlackElo "2848"]
[TimeControl "180+1"]
[EndTime "10:44:51 PST"]
[Termination "GigaQuparadze won on time"]

1. Nf3 {[%clk 0:03:00.9]} 1... Nf6 {[%clk 0:02:59.5]} 2. c4 {[%clk 0:03:00.7]}
2... e6 {[%clk 0:02:59.1]} 3. Nc3 {[%clk 0:03:00.8]} 3... Bb4 {[%clk 0:02:58.7]}
4. Qc2 {[%clk 0:03:00.3]} 4... b6 {[%clk 0:02:56.5]} 5. a3 {[%clk 0:02:59.5]}
5... Bxc3 {[%clk 0:02:56.1]} 6. Qxc3 {[%clk 0:02:59.9]} 6... Bb7 {[%clk
0:02:56.8]} 7. b4 {[%clk 0:02:57.3]} 7... d6 {[%clk 0:02:56.5]} 8. Bb2 {[%clk
0:02:56.7]} 8... O-O {[%clk 0:02:56.2]} 9. e3 {[%clk 0:02:56.2]} 9... Nbd7
{[%clk 0:02:56]} 10. Be2 {[%clk 0:02:55.7]} 10... e5 {[%clk 0:02:55]} 11. O-O
{[%clk 0:02:54.9]} 11... Re8 {[%clk 0:02:51.9]} 12. d3 {[%clk 0:02:36.1]} 12...
a5 {[%clk 0:02:51.6]} 13. Rfd1 {[%clk 0:02:33.1]} 13... Qe7 {[%clk 0:02:50.4]}
14. h3 {[%clk 0:02:28.9]} 14... h6 {[%clk 0:02:49.6]} 15. d4 {[%clk 0:01:56.3]}
15... Ne4 {[%clk 0:02:48.3]} 16. Qe1 {[%clk 0:01:55.6]} 16... Ng5 {[%clk
0:02:47.7]} 17. d5 {[%clk 0:01:49.1]} 17... Nxf3+ {[%clk 0:02:43.7]} 18. Bxf3
{[%clk 0:01:50]} 18... f5 {[%clk 0:02:43.7]} 19. e4 {[%clk 0:01:49.9]} 19...
fxe4 {[%clk 0:02:42.4]} 20. Bxe4 {[%clk 0:01:49.4]} 20... Rf8 {[%clk 0:02:42.3]}
21. Bc3 {[%clk 0:01:45.5]} 21... axb4 {[%clk 0:02:37.9]} 22. axb4 {[%clk
0:01:46.4]} 22... Nf6 {[%clk 0:02:38.2]} 23. f3 {[%clk 0:01:39.2]} 23... Nxe4
{[%clk 0:02:34.6]} 24. Qxe4 {[%clk 0:01:12.7]} 24... b5 {[%clk 0:02:29.5]} 25.
c5 {[%clk 0:00:48.7]} 25... dxc5 {[%clk 0:02:05.3]} 26. Qxe5 {[%clk 0:00:46.7]}
26... Qxe5 {[%clk 0:02:02]} 27. Bxe5 {[%clk 0:00:47.6]} 27... Rxa1 {[%clk
0:01:59.7]} 28. Rxa1 {[%clk 0:00:45.6]} 28... cxb4 {[%clk 0:01:52]} 29. d6
{[%clk 0:00:33.3]} 29... c5 {[%clk 0:01:29.2]} 30. Ra5 {[%clk 0:00:24.2]} 30...
Bc6 {[%clk 0:01:28.5]} 31. Ra6 {[%clk 0:00:24.4]} 31... Bd7 {[%clk 0:01:27.3]}
32. Ra7 {[%clk 0:00:18.2]} 32... Rf7 {[%clk 0:01:27]} 33. Rc7 {[%clk 0:00:12.8]}
33... c4 {[%clk 0:01:26.3]} 34. f4 {[%clk 0:00:12.8]} 34... b3 {[%clk
0:01:26.4]} 35. g4 {[%clk 0:00:12.3]} 35... Be6 {[%clk 0:01:19.7]} 36. Rc5
{[%clk 0:00:07.8]} 36... Rb7 {[%clk 0:00:49.9]} 37. f5 {[%clk 0:00:07.2]} 37...
Bd7 {[%clk 0:00:50.1]} 38. h4 {[%clk 0:00:03.1]} 38... h5 {[%clk 0:00:47.9]} 39.
gxh5 {[%clk 0:00:02.6]} 39... Bxf5 {[%clk 0:00:47.5]} 40. Kf2 {[%clk 0:00:02.9]}
40... Be6 {[%clk 0:00:46.1]} 41. Ke3 {[%clk 0:00:01.3]} 41... b4 {[%clk
0:00:46]} 42. Rc7 {[%clk 0:00:01.7]} 42... Rxc7 {[%clk 0:00:45.3]} 43. dxc7
{[%clk 0:00:02.4]} 43... c3 {[%clk 0:00:45.7]} 44. Kd3 {[%clk 0:00:01.6]} 44...
b2 {[%clk 0:00:45.6]} 0-1

[Event "*** Titled Tuesday Blitz"]
[Site "Chess.com"]
[Date "2020.11.24"]
[Round "3"]
[White "VladimirBugayev"]
[Black "kkpanu9"]
[Result "1-0"]
[WhiteElo "2317"]
[BlackElo "2052"]
[TimeControl "180+1"]
[EndTime "10:44:52 PST"]
[Termination "VladimirBugayev won on time"]

1. e4 {[%clk 0:03:00.9]} 1... c5 {[%clk 0:03:00]} 2. Nc3 {[%clk 0:03:00.8]} 2...
d6 {[%clk 0:02:59.5]} 3. f4 {[%clk 0:02:58.1]} 3... g6 {[%clk 0:02:58.2]} 4. Nf3
{[%clk 0:02:58.7]} 4... Bg7 {[%clk 0:02:58.6]} 5. Bc4 {[%clk 0:02:59.1]} 5...
Nc6 {[%clk 0:02:58.7]} 6. d3 {[%clk 0:02:59.4]} 6... Nf6 {[%clk 0:02:59]} 7. O-O
{[%clk 0:02:59.7]} 7... e6 {[%clk 0:02:56.3]} 8. Qe1 {[%clk 0:02:57]} 8... O-O
{[%clk 0:02:56.4]} 9. Qh4 {[%clk 0:02:56.4]} 9... d5 {[%clk 0:02:08]} 10. Bb3
{[%clk 0:02:55.2]} 10... Nd4 {[%clk 0:01:51.6]} 11. e5 {[%clk 0:01:59.3]} 11...
Nd7 {[%clk 0:01:43.2]} 12. Qxd8 {[%clk 0:01:50.9]} 12... Rxd8 {[%clk 0:01:44.1]}
13. Nxd4 {[%clk 0:01:50.4]} 13... cxd4 {[%clk 0:01:43.4]} 14. Ne2 {[%clk
0:01:51]} 14... g5 {[%clk 0:01:26.1]} 15. g3 {[%clk 0:01:46.6]} 15... gxf4
{[%clk 0:01:24.4]} 16. gxf4 {[%clk 0:01:46.4]} 16... Nc5 {[%clk 0:01:18.6]} 17.
Nxd4 {[%clk 0:01:44.7]} 17... a5 {[%clk 0:01:11.2]} 18. a4 {[%clk 0:01:29.1]}
18... Nxb3 {[%clk 0:01:03.2]} 19. Nxb3 {[%clk 0:01:27.4]} 19... f6 {[%clk
0:00:57.2]} 20. d4 {[%clk 0:01:25.8]} 20... b6 {[%clk 0:00:42.1]} 21. Kf2 {[%clk
0:01:17]} 21... Rf8 {[%clk 0:00:26.1]} 22. Ke1 {[%clk 0:01:00.5]} 22... fxe5
{[%clk 0:00:25.5]} 23. fxe5 {[%clk 0:00:56.4]} 23... Rxf1+ {[%clk 0:00:22.8]}
24. Kxf1 {[%clk 0:00:56.4]} 24... Bd7 {[%clk 0:00:21.7]} 25. Be3 {[%clk
0:00:52.2]} 25... Rc8 {[%clk 0:00:20]} 26. c3 {[%clk 0:00:41.3]} 26... Rc4
{[%clk 0:00:10.2]} 27. Nd2 {[%clk 0:00:40.9]} 27... Rxa4 {[%clk 0:00:09.9]} 28.
Rxa4 {[%clk 0:00:40.3]} 28... Bxa4 {[%clk 0:00:10.8]} 29. b3 {[%clk 0:00:38.7]}
29... Bd7 {[%clk 0:00:09.9]} 30. Ke2 {[%clk 0:00:37.6]} 30... Be8 {[%clk
0:00:10.2]} 31. c4 {[%clk 0:00:34.3]} 31... dxc4 {[%clk 0:00:08.7]} 32. Nxc4
{[%clk 0:00:32.6]} 32... a4 {[%clk 0:00:07.2]} 33. bxa4 {[%clk 0:00:31.9]} 33...
Bxa4 {[%clk 0:00:06.5]} 34. Nxb6 {[%clk 0:00:32.4]} 34... Bb5+ {[%clk
0:00:06.5]} 35. Kf3 {[%clk 0:00:27.7]} 35... Kf7 {[%clk 0:00:06.9]} 36. Nc8
{[%clk 0:00:27.1]} 36... Kg6 {[%clk 0:00:05.2]} 37. Nd6 {[%clk 0:00:26.8]} 37...
Bd7 {[%clk 0:00:04.8]} 38. Ke4 {[%clk 0:00:24.2]} 38... Bf8 {[%clk 0:00:04.1]}
39. d5 {[%clk 0:00:23]} 39... exd5+ {[%clk 0:00:03.8]} 40. Kxd5 {[%clk
0:00:22.9]} 40... Bxd6 {[%clk 0:00:02.9]} 41. Kxd6 {[%clk 0:00:22.7]} 41... Be8
{[%clk 0:00:01.7]} 42. Ke7 {[%clk 0:00:21.6]} 1-0

[Event "*** Titled Tuesday Blitz"]
[Site "Chess.com"]
[Date "2020.11.24"]
[Round "3"]
[White "Jumbo"]
[Black "Roman_Ovetchkin"]
[Result "1-0"]
[WhiteElo "2853"]
[BlackElo "2616"]
[TimeControl "180+1"]
[EndTime "10:44:54 PST"]
[Termination "Jumbo won on time"]

1. d4 {[%clk 0:03:00.9]} 1... Nf6 {[%clk 0:02:59.9]} 2. Bf4 {[%clk 0:03:01.3]}
2... d6 {[%clk 0:02:59.5]} 3. Nc3 {[%clk 0:02:59]} 3... Nbd7 {[%clk 0:02:58.8]}
4. Nf3 {[%clk 0:02:59.2]} 4... c5 {[%clk 0:02:57.6]} 5. d5 {[%clk 0:02:31.9]}
5... a6 {[%clk 0:02:35.3]} 6. a4 {[%clk 0:02:29.6]} 6... Qa5 {[%clk 0:02:33]} 7.
Bd2 {[%clk 0:01:39.7]} 7... g6 {[%clk 0:02:29.7]} 8. e4 {[%clk 0:01:36.4]} 8...
Bg7 {[%clk 0:02:29.6]} 9. h3 {[%clk 0:01:36.7]} 9... O-O {[%clk 0:02:29.2]} 10.
Bd3 {[%clk 0:01:34.7]} 10... Qc7 {[%clk 0:01:55]} 11. b3 {[%clk 0:01:33]} 11...
e6 {[%clk 0:01:45]} 12. dxe6 {[%clk 0:01:30.2]} 12... fxe6 {[%clk 0:01:44.9]}
13. e5 {[%clk 0:01:01.1]} 13... Nxe5 {[%clk 0:01:16.6]} 14. Nxe5 {[%clk
0:01:00.2]} 14... dxe5 {[%clk 0:01:17.5]} 15. O-O {[%clk 0:00:58.2]} 15... Bd7
{[%clk 0:01:13.9]} 16. Qe2 {[%clk 0:00:55.3]} 16... Bc6 {[%clk 0:01:10.2]} 17.
Rae1 {[%clk 0:00:54.7]} 17... Nd5 {[%clk 0:01:08.8]} 18. Ne4 {[%clk 0:00:51.3]}
18... Nf4 {[%clk 0:00:25.3]} 19. Bxf4 {[%clk 0:00:49.5]} 19... Rxf4 {[%clk
0:00:26.2]} 20. Nxc5 {[%clk 0:00:49.8]} 20... Qf7 {[%clk 0:00:23.7]} 21. Bc4
{[%clk 0:00:40.6]} 21... Bd5 {[%clk 0:00:21.6]} 22. g3 {[%clk 0:00:30.2]} 22...
Rxc4 {[%clk 0:00:20.2]} 23. bxc4 {[%clk 0:00:29.1]} 23... Bf3 {[%clk 0:00:20]}
24. Qe3 {[%clk 0:00:28.2]} 24... Qf5 {[%clk 0:00:18]} 25. Kh2 {[%clk 0:00:27.4]}
25... Rf8 {[%clk 0:00:15.8]} 26. Nd7 {[%clk 0:00:24.3]} 26... Qh5 {[%clk
0:00:13.4]} 27. Nxf8 {[%clk 0:00:22]} 27... Bg4 {[%clk 0:00:13.1]} 28. h4 {[%clk
0:00:22.4]} 28... Kxf8 {[%clk 0:00:12]} 29. Qg5 {[%clk 0:00:22.4]} 29... Qxg5
{[%clk 0:00:08.1]} 30. hxg5 {[%clk 0:00:23.3]} 30... Bf3 {[%clk 0:00:09]} 31.
Re3 {[%clk 0:00:22.7]} 31... Bc6 {[%clk 0:00:08]} 32. a5 {[%clk 0:00:22.8]}
32... Ke7 {[%clk 0:00:07]} 33. Rd1 {[%clk 0:00:21.5]} 33... e4 {[%clk
0:00:06.3]} 34. Rb3 {[%clk 0:00:17.5]} 34... Be5 {[%clk 0:00:05.5]} 35. Rdb1
{[%clk 0:00:17.9]} 35... Kd6 {[%clk 0:00:04.3]} 36. Rxb7 {[%clk 0:00:18.1]} 1-0

[Event "*** Titled Tuesday Blitz"]
[Site "Chess.com"]
[Date "2020.11.24"]
[Round "3"]
[White "GianmarcoVaR"]
[Black "Aleksey_Sorokin"]
[Result "0-1"]
[WhiteElo "2600"]
[BlackElo "2818"]
[TimeControl "180+1"]
[EndTime "10:44:56 PST"]
[Termination "Aleksey_Sorokin won on time"]

1. d4 {[%clk 0:03:00.9]} 1... Nf6 {[%clk 0:02:59.3]} 2. Nf3 {[%clk 0:03:01.4]}
2... g6 {[%clk 0:02:59.7]} 3. Bg5 {[%clk 0:03:01.4]} 3... Ne4 {[%clk 0:02:57.9]}
4. Bh4 {[%clk 0:03:01.1]} 4... Bg7 {[%clk 0:02:57.9]} 5. c3 {[%clk 0:03:01.4]}
5... O-O {[%clk 0:02:57.3]} 6. e3 {[%clk 0:03:01.9]} 6... d5 {[%clk 0:02:54]} 7.
Nbd2 {[%clk 0:03:00.9]} 7... c5 {[%clk 0:02:53.5]} 8. Be2 {[%clk 0:03:01]} 8...
Nc6 {[%clk 0:02:52.9]} 9. Nxe4 {[%clk 0:02:57.4]} 9... dxe4 {[%clk 0:02:52.8]}
10. Nd2 {[%clk 0:02:58]} 10... cxd4 {[%clk 0:02:48]} 11. exd4 {[%clk 0:02:53.9]}
11... Bf5 {[%clk 0:02:24.3]} 12. g4 {[%clk 0:02:43.6]} 12... Be6 {[%clk
0:02:22.5]} 13. Nxe4 {[%clk 0:02:41.9]} 13... Qd5 {[%clk 0:02:13.3]} 14. Bf3
{[%clk 0:02:38.6]} 14... Bxg4 {[%clk 0:02:06.4]} 15. Nf6+ {[%clk 0:02:33.6]}
15... exf6 {[%clk 0:01:48.9]} 16. Bxd5 {[%clk 0:02:31.5]} 16... Rfe8+ {[%clk
0:01:44.8]} 17. Kd2 {[%clk 0:02:28.9]} 17... Bxd1 {[%clk 0:01:31.4]} 18. Raxd1
{[%clk 0:02:28.7]} 18... Rad8 {[%clk 0:01:31.1]} 19. Bxc6 {[%clk 0:02:19]} 19...
bxc6 {[%clk 0:01:30.7]} 20. Rhe1 {[%clk 0:02:14]} 20... Kf8 {[%clk 0:01:27.7]}
21. Kd3 {[%clk 0:01:37.2]} 21... Re6 {[%clk 0:01:27.4]} 22. f3 {[%clk
0:01:19.6]} 22... Rd5 {[%clk 0:01:25.9]} 23. Bg3 {[%clk 0:00:49.6]} 23... Ke7
{[%clk 0:01:25]} 24. b4 {[%clk 0:00:48.8]} 24... Kd7 {[%clk 0:01:21.4]} 25. Kc4
{[%clk 0:00:29.7]} 25... Rf5 {[%clk 0:01:14.7]} 26. Rxe6 {[%clk 0:00:27.7]}
26... fxe6 {[%clk 0:01:14.3]} 27. Rd3 {[%clk 0:00:27.4]} 27... h5 {[%clk
0:01:10.5]} 28. a4 {[%clk 0:00:25.8]} 28... a6 {[%clk 0:01:10.4]} 29. Kb3 {[%clk
0:00:16.7]} 29... g5 {[%clk 0:01:09.3]} 30. h3 {[%clk 0:00:17.1]} 30... Bf8
{[%clk 0:01:07.9]} 31. c4 {[%clk 0:00:16.9]} 31... h4 {[%clk 0:01:05.3]} 32. Bh2
{[%clk 0:00:13.6]} 32... Bd6 {[%clk 0:01:05.6]} 33. Bxd6 {[%clk 0:00:12.7]}
33... Kxd6 {[%clk 0:01:06.5]} 34. Kc3 {[%clk 0:00:11.3]} 34... Rf4 {[%clk
0:01:06.2]} 35. Kd2 {[%clk 0:00:11]} 35... e5 {[%clk 0:01:04.2]} 36. Ke3 {[%clk
0:00:09.2]} 36... f5 {[%clk 0:00:59.5]} 37. Rd2 {[%clk 0:00:03.2]} 37... Rxd4
{[%clk 0:00:48.4]} 38. Rxd4+ {[%clk 0:00:03]} 38... exd4+ {[%clk 0:00:49.3]} 39.
Kxd4 {[%clk 0:00:03.9]} 39... g4 {[%clk 0:00:48.9]} 40. fxg4 {[%clk 0:00:03.9]}
40... fxg4 {[%clk 0:00:49.8]} 41. Ke3 {[%clk 0:00:04.3]} 41... g3 {[%clk
0:00:43]} 42. Kf3 {[%clk 0:00:04.4]} 42... Ke5 {[%clk 0:00:38.5]} 43. Kg2 {[%clk
0:00:04.6]} 43... Kd4 {[%clk 0:00:35.8]} 44. b5 {[%clk 0:00:04.5]} 44... cxb5
{[%clk 0:00:34.3]} 45. cxb5 {[%clk 0:00:04.7]} 45... axb5 {[%clk 0:00:34.5]} 46.
axb5 {[%clk 0:00:02.5]} 46... Kc5 {[%clk 0:00:35.4]} 47. b6 {[%clk 0:00:01.6]}
47... Kxb6 {[%clk 0:00:36.3]} 48. Kf3 {[%clk 0:00:01.2]} 48... Kb5 {[%clk
0:00:37.2]} 49. Ke3 {[%clk 0:00:01.6]} 49... Kc5 {[%clk 0:00:38.1]} 0-1